bitfinex/quotes_BTCUSD_20230115
["timestamp","ask_amount","ask_price","bid_price","bid_amount"]
[1673745605108,0.06790269,20689.0,20684.0,0.6248]
[1673745605335,1.04316769,20688.0,20685.0,0.35934499]
[1673745605800,0.975265,20688.0,20685.0,0.35934499]
[1673745607293,0.491883,20688.0,20685.0,0.19072595]
[1673745607549,0.0085,20688.0,20685.0,0.1]
[1673745607796,0.0085,20688.0,20686.0,0.321212]
[1673745608059,0.483307,20691.0,20687.0,0.215113]
[1673745608060,0.32279875,20690.0,20687.0,0.215113]
[1673745608292,0.32279875,20690.0,20687.0,0.19072595]
[1673745608528,0.32279875,20690.0,20686.0,0.36534817]
[1673745608529,0.42173775,20689.0,20686.0,0.36534817]
[1673745608775,0.0085,20688.0,20686.0,0.36534817]
[1673745609990,0.42214359,20688.0,20686.0,0.36534817]
[1673745611534,0.0085,20688.0,20686.0,0.67414295]
[1673745611781,0.4833,20692.0,20687.0,0.321212]
[1673745611782,0.38878447,20692.0,20687.0,0.321212]
[1673745612038,0.38878447,20692.0,20688.0,0.40581195]
[1673745612039,0.34253678,20690.0,20688.0,0.40581195]
[1673745612281,0.483281,20692.0,20685.0,0.8763408]
[1673745612282,0.37409283,20689.0,20685.0,0.8763408]
[1673745612541,0.37409283,20689.0,20685.0,0.3929218]
[1673745612542,0.06790269,20688.0,20685.0,0.3929218]
[1673745613064,0.85744783,20689.0,20685.0,0.3929218]
[1673745613305,0.85744783,20689.0,20686.0,0.321212]
[1673745613306,0.0085,20688.0,20686.0,0.321212]
[1673745613544,0.491872,20688.0,20687.0,0.215112]
[1673745614047,0.491872,20688.0,20684.0,0.7248]
[1673745614278,0.55977469,20688.0,20685.0,0.321212]
[1673745614529,0.55977469,20688.0,20686.0,0.215141]
[1673745614530,0.975244,20688.0,20686.0,0.215141]
[1673745614767,0.975244,20688.0,20687.0,0.321179]
[1673745615023,0.975244,20688.0,20685.0,0.4641147]
[1673745615514,0.975244,20688.0,20684.0,0.37211291]
[1673745615515,0.4332555,20687.0,20684.0,0.37211291]
[1673745615758,1.35488497,20686.0,20684.0,0.37211291]
[1673745617242,0.483391,20688.0,20685.0,0.19072595]
[1673745617489,0.9855282,20691.0,20686.0,0.51193795]
[1673745617490,0.35794714,20691.0,20686.0,0.51193795]
[1673745617741,0.35794714,20691.0,20687.0,0.40583895]
[1673745617980,0.35794714,20691.0,20688.0,0.19072595]
[1673745618238,0.00650273,20693.0,20688.0,0.19072595]
[1673745618477,0.00650273,20693.0,20689.0,0.19072595]
[1673745618730,0.38458944,20693.0,20689.0,0.57136691]
[1673745619023,0.0085,20692.0,20689.0,0.57136691]
[1673745619274,0.0085,20692.0,20689.0,0.38064096]
[1673745619514,0.38458944,20693.0,20690.0,0.51193795]
[1673745619515,0.00650273,20693.0,20690.0,0.51193795]
[1673745619758,0.00650273,20693.0,20691.0,0.88902495]
[1673745619993,0.00650273,20693.0,20692.0,0.421178]
[1673745620739,0.47139225,20693.0,20692.0,0.321178]
[1673745620990,0.40348956,20693.0,20691.0,0.3801133]
[1673745621236,0.40348956,20693.0,20689.0,0.483348]
[1673745621237,0.00650273,20693.0,20692.0,0.44043075]
[1673745621485,0.00650273,20693.0,20692.0,0.321212]
[1673745621734,0.00650273,20693.0,20692.0,0.82045473]
[1673745621970,0.00650273,20693.0,20692.0,0.321212]
[1673745622218,0.00650273,20693.0,20692.0,0.421212]
[1673745622735,0.00650273,20693.0,20692.0,0.90449]
[1673745623240,0.01500273,20693.0,20692.0,0.321212]
[1673745623495,0.01500273,20693.0,20691.0,0.46523176]
[1673745623744,0.37664899,20693.0,20691.0,0.46523176]
[1673745624263,0.37664899,20693.0,20689.0,0.36865663]
[1673745624264,0.35840203,20692.0,20689.0,0.36865663]
[1673745624517,0.42630472,20692.0,20689.0,0.36854353]
[1673745624763,0.42630472,20692.0,20689.0,0.19072595]
[1673745624764,0.49179,20692.0,20689.0,0.19072595]
[1673745625017,0.0085,20692.0,20690.0,0.321212]
[1673745625247,0.00650273,20693.0,20691.0,0.214998]
[1673745625499,0.00650273,20693.0,20692.0,0.321179]
[1673745625746,0.01500273,20693.0,20692.0,0.321179]
[1673745625979,0.01500273,20693.0,20692.0,0.321212]
[1673745626521,0.01500273,20693.0,20692.0,0.41605461]
[1673745626775,0.01500273,20693.0,20692.0,0.73726661]
[1673745627041,0.01500273,20693.0,20692.0,0.41605461]
[1673745628064,0.00650273,20693.0,20692.0,0.41605461]
[1673745628316,0.00650273,20693.0,20692.0,0.73726661]
[1673745629114,0.00650273,20693.0,20692.0,0.41605461]
[1673745629835,0.01500273,20693.0,20692.0,0.41605461]
[1673745630353,0.01500273,20693.0,20689.0,0.667427]
[1673745630610,0.01500273,20693.0,20691.0,0.41396143]
[1673745630611,0.0085,20692.0,20691.0,0.41396143]
[1673745630878,0.491778,20692.0,20691.0,0.41396143]
[1673745631136,0.491778,20692.0,20688.0,0.40567615]
[1673745631137,1.11932906,20692.0,20688.0,0.40567615]
[1673745631402,0.06790269,20691.0,20688.0,0.40567615]
[1673745631686,1.458475,20690.0,20685.0,0.18979]
[1673745631948,0.06790269,20689.0,20686.0,0.43146064]
[1673745632201,0.483372,20688.0,20686.0,0.43146064]
[1673745632456,0.483372,20688.0,20687.0,0.321212]
[1673745633214,0.483372,20688.0,20687.0,0.215095]
[1673745633476,0.491872,20688.0,20686.0,0.43146064]
[1673745633732,0.491872,20688.0,20683.0,0.14963323]
[1673745633733,1.03464669,20688.0,20683.0,0.14963323]
[1673745634006,0.07640269,20687.0,20684.0,0.40180531]
[1673745634336,1.80673926,20686.0,20684.0,0.40180531]
[1673745634502,1.80673926,20686.0,20683.0,0.00551823]
[1673745634760,0.0085,20685.0,20683.0,0.50744549]
[1673745635008,0.96693,20684.0,20683.0,0.50744549]
[1673745636039,0.975402,20685.0,20683.0,0.00551823]
[1673745636290,0.0085,20685.0,20684.0,0.41688461]
[1673745636559,0.0085,20685.0,20684.0,0.63208261]
[1673745636872,0.0085,20685.0,20683.0,0.00551823]
[1673745637066,0.0085,20685.0,20683.0,0.42239403]
[1673745637833,1.28797704,20685.0,20683.0,0.42239403]
[1673745639102,0.975411,20685.0,20683.0,0.42239403]
[1673745639603,0.975411,20685.0,20684.0,0.46767735]
[1673745639604,0.483448,20685.0,20684.0,0.46767735]
[1673745639854,0.483448,20685.0,20684.0,0.78888935]
[1673745640104,0.483439,20686.0,20684.0,0.78888935]
[1673745640367,0.4834,20687.0,20685.0,0.215171]
[1673745640368,0.966812,20687.0,20685.0,0.215171]
[1673745640621,0.966812,20687.0,20684.0,0.46767735]
[1673745640880,0.0085,20686.0,20684.0,0.46767735]
[1673745641427,0.0085,20686.0,20685.0,0.321212]
[1673745642200,0.0085,20687.0,20685.0,0.79574869]
[1673745642202,0.0085,20687.0,20685.0,0.321212]
[1673745642459,0.0085,20687.0,20686.0,0.215143]
[1673745642716,0.0085,20688.0,20686.0,0.215143]
[1673745643063,0.62758206,20691.0,20686.0,0.215143]
[1673745643064,0.483317,20691.0,20687.0,0.321178]
[1673745643804,1.04894778,20692.0,20688.0,0.40584595]
[1673745643807,0.48976273,20693.0,20688.0,0.40584595]
[1673745643809,0.00650273,20693.0,20689.0,0.1]
[1673745644062,0.00650273,20693.0,20690.0,0.19072595]
[1673745644347,0.00650273,20693.0,20691.0,0.51193795]
[1673745644600,0.00650273,20693.0,20692.0,0.62055436]
[1673745644863,0.00680273,20693.0,20692.0,0.62055436]
[1673745645125,0.00680273,20693.0,20692.0,1.58711036]
[1673745646932,0.00672945,20693.0,20692.0,1.58711036]
[1673745647206,0.00672945,20693.0,20692.0,1.181525]
[1673745647711,0.00672945,20693.0,20692.0,1.62012]
[1673745647970,0.00672945,20693.0,20692.0,1.181525]
[1673745648260,0.00672945,20693.0,20692.0,1.481525]
[1673745650100,0.07463214,20693.0,20692.0,1.65519516]
[1673745650353,0.00672945,20693.0,20692.0,0.68863916]
[1673745650602,0.00672945,20693.0,20692.0,0.214969]
[1673745650870,0.00672945,20693.0,20692.0,0.62984464]
[1673745651390,0.00672945,20693.0,20692.0,0.214969]
[1673745651906,0.13774214,20693.0,20692.0,0.214969]
[1673745652183,0.52798741,20693.0,20691.0,0.3944936]
[1673745652457,0.07161,20692.0,20691.0,0.3944936]
[1673745652713,0.07161,20692.0,20689.0,0.40384204]
[1673745652714,0.41007676,20692.0,20689.0,0.40384204]
[1673745652992,0.96127445,20692.0,20689.0,0.40384204]
[1673745653549,0.89337176,20692.0,20689.0,0.40384204]
[1673745653830,0.96157445,20692.0,20689.0,0.40384204]
[1673745654093,0.89367176,20692.0,20689.0,0.40384204]
[1673745654342,1.37694976,20692.0,20689.0,0.40384204]
[1673745654614,1.50774976,20692.0,20689.0,0.40384204]
[1673745654875,1.57565245,20692.0,20684.0,0.144115]
[1673745655141,1.57565245,20692.0,20684.0,0.33484095]
[1673745655142,0.06790269,20691.0,20684.0,0.33484095]
[1673745655389,0.07640269,20690.0,20685.0,0.36366076]
[1673745655640,1.45005,20689.0,20685.0,0.36366076]
[1673745655903,1.45005,20689.0,20685.0,0.29072595]
[1673745656171,0.9667,20689.0,20685.0,0.244115]
[1673745656462,0.9667,20689.0,20686.0,0.321212]
[1673745656675,0.9667,20689.0,20687.0,0.215112]
[1673745656953,0.0085,20690.0,20685.0,0.43484095]
[1673745656954,0.49183,20690.0,20688.0,0.321179]
[1673745657186,0.49183,20690.0,20688.0,0.19072595]
[1673745657187,0.0085,20690.0,20688.0,0.19072595]
[1673745657471,0.0085,20690.0,20689.0,0.321212]
[1673745657802,0.0003,20691.0,20689.0,0.321212]
[1673745657970,0.0003,20691.0,20690.0,0.215028]
[1673745658226,0.0003,20691.0,20687.0,0.29201]
[1673745658473,0.0003,20691.0,20688.0,0.39668262]
[1673745658724,0.0003,20691.0,20689.0,0.79991529]
[1673745658949,0.0003,20691.0,20690.0,0.215027]
[1673745659509,0.0003,20691.0,20689.0,0.47870329]
[1673745660061,0.32921216,20691.0,20688.0,0.483366]
[1673745660332,0.31986912,20690.0,20687.0,0.44757746]
[1673745660579,0.06790269,20689.0,20685.0,0.41969948]
[1673745660830,0.07640269,20688.0,20685.0,0.41969948]
[1673745661090,0.07640269,20688.0,20687.0,0.49575409]
[1673745661369,0.0085,20688.0,20687.0,0.19072595]
[1673745661637,0.0085,20689.0,20687.0,0.321212]
[1673745661872,0.0085,20690.0,20688.0,0.215084]
[1673745662117,0.0085,20690.0,20689.0,0.37448702]
[1673745663143,0.97515,20690.0,20689.0,0.37448702]
[1673745664652,1.30623794,20690.0,20686.0,0.38571784]
[1673745664919,0.06790269,20689.0,20686.0,0.38571784]
[1673745665174,0.975244,20688.0,20686.0,0.38571784]
[1673745666178,1.36633551,20688.0,20686.0,0.38571784]
[1673745667694,0.975244,20688.0,20686.0,0.38571784]
[1673745667959,0.975244,20688.0,20686.0,0.57644379]
[1673745668221,0.0003,20691.0,20687.0,0.321212]
[1673745668469,0.0003,20691.0,20688.0,0.40581195]
[1673745668470,0.0088,20691.0,20688.0,0.40581195]
[1673745668725,0.00870368,20691.0,20689.0,0.321212]
[1673745668980,0.0085,20690.0,20689.0,0.19072595]
[1673745669237,0.00020368,20691.0,20688.0,0.1]
[1673745669513,0.00020368,20691.0,20689.0,0.93536]
[1673745669772,0.00020368,20691.0,20690.0,0.645827]
[1673745670029,0.00642945,20693.0,20691.0,0.1]
[1673745670300,0.00642945,20693.0,20692.0,1.287719]
[1673745670549,0.00642945,20693.0,20692.0,1.418519]
[1673745670806,0.00642945,20693.0,20692.0,1.89987765]
[1673745671562,0.00642945,20693.0,20692.0,1.76907765]
[1673745671818,0.00642945,20693.0,20692.0,1.287719]
[1673745672318,0.00642945,20693.0,20692.0,1.67922748]
[1673745672589,0.00642945,20693.0,20692.0,1.287719]
[1673745673098,0.00642945,20693.0,20692.0,1.687719]
[1673745673856,0.00585416,20700.0,20693.0,0.00836974]
[1673745674111,0.00585416,20700.0,20698.0,0.1308]
[1673745674372,0.00585416,20700.0,20699.0,0.321041]
[1673745674636,0.00585416,20700.0,20699.0,0.52484695]
[1673745675155,0.00585416,20700.0,20699.0,0.634121]
[1673745675422,0.00585416,20700.0,20699.0,0.334121]
[1673745675719,0.00585416,20700.0,20699.0,0.434121]
[1673745676185,0.00585416,20700.0,20699.0,1.22066769]
[1673745676442,0.00585416,20700.0,20699.0,0.72447269]
[1673745676717,0.00585416,20700.0,20699.0,0.40343169]
[1673745677458,0.00585416,20700.0,20698.0,0.48075172]
[1673745679052,0.00585416,20700.0,20699.0,0.321212]
[1673745679822,0.00585416,20700.0,20696.0,0.917415]
[1673745680075,0.00585416,20700.0,20698.0,0.2308]
[1673745680076,0.07375685,20700.0,20698.0,0.2308]
[1673745680335,0.00585416,20700.0,20699.0,0.697899]
[1673745680597,0.00585416,20700.0,20699.0,0.214784]
[1673745680945,0.00585416,20700.0,20699.0,0.71237596]
[1673745681095,0.00585416,20700.0,20699.0,1.19549096]
[1673745682204,0.00585416,20700.0,20699.0,0.71237596]
[1673745682673,0.06896416,20700.0,20695.0,1.13389]
[1673745682942,0.07640269,20699.0,20696.0,0.41422036]
[1673745683246,0.483138,20698.0,20696.0,0.41422036]
[1673745683537,0.34482164,20697.0,20694.0,0.45408336]
[1673745683765,0.06790269,20696.0,20694.0,0.45408336]
[1673745684268,0.483187,20696.0,20694.0,0.45408336]
[1673745684778,0.82798864,20697.0,20694.0,0.19072595]
[1673745684779,0.0085,20697.0,20694.0,0.19072595]
[1673745685030,0.0085,20697.0,20695.0,0.421212]
[1673745685281,0.0085,20698.0,20697.0,0.37871354]
[1673745685537,0.0085,20699.0,20697.0,0.69989254]
[1673745685805,0.36927877,20700.0,20698.0,0.40555495]
[1673745685806,0.00585416,20700.0,20698.0,0.40555495]
[1673745686072,0.00585416,20700.0,20699.0,0.321147]
[1673745686320,0.00585416,20700.0,20699.0,0.81408245]
[1673745686578,0.00585416,20700.0,20699.0,0.70022966]
[1673745686828,0.00585416,20700.0,20699.0,0.321147]
[1673745687328,0.00585416,20700.0,20699.0,0.81365513]
[1673745687583,0.00585416,20700.0,20699.0,0.804262]
[1673745688091,0.00585416,20700.0,20699.0,0.321147]
[1673745688358,0.00585416,20700.0,20699.0,1.27347052]
[1673745688893,0.00585416,20700.0,20699.0,0.79035552]
[1673745689412,0.00585416,20700.0,20699.0,0.46920852]
[1673745689925,0.00585416,20700.0,20699.0,0.79042052]
[1673745690180,0.00585416,20700.0,20699.0,0.321212]
[1673745691238,0.00585416,20700.0,20699.0,0.77697507]
[1673745691490,0.00085416,20700.0,20699.0,0.321212]
[1673745692015,0.00085416,20700.0,20699.0,1.234127]
[1673745692292,0.00085416,20700.0,20699.0,1.947042]
[1673745693869,0.00585416,20701.0,20700.0,0.22895408]
[1673745694121,0.00585416,20701.0,20700.0,1.97107508]
[1673745695401,0.00585416,20701.0,20700.0,1.84027508]
[1673745696650,0.00585416,20701.0,20700.0,1.74027508]
[1673745696899,0.00585416,20701.0,20700.0,1.66585315]
[1673745697166,0.00585416,20701.0,20700.0,0.63656115]
[1673745697421,0.00585416,20701.0,20700.0,0.57094115]
[1673745697682,0.06896416,20701.0,20700.0,0.57094115]
[1673745697943,0.00585416,20701.0,20700.0,0.35620215]
[1673745698454,0.00585416,20701.0,20700.0,0.67741415]
[1673745700014,0.00585416,20701.0,20700.0,1.16050515]
[1673745700290,0.00585416,20701.0,20700.0,0.32143608]
[1673745700291,0.06896416,20701.0,20700.0,0.32143608]
[1673745700523,0.06896416,20701.0,20700.0,0.00022408]
[1673745700524,0.49583751,20701.0,20700.0,0.00022408]
[1673745701037,0.98740551,20701.0,20700.0,0.00022408]
[1673745701595,0.01435416,20701.0,20700.0,0.00022408]
[1673745702055,0.00585416,20701.0,20700.0,0.72650548]
[1673745702308,0.00585416,20701.0,20700.0,0.32143608]
[1673745702580,0.00585416,20701.0,20700.0,0.00022408]
[1673745702581,0.33548739,20701.0,20700.0,0.00022408]
[1673745706950,0.13686685,20701.0,20700.0,0.00022408]
[1673745707200,1.37230285,20701.0,20700.0,0.00022408]
[1673745707468,1.71948276,20701.0,20700.0,0.00022408]
[1673745707726,1.58868276,20701.0,20700.0,0.00022408]
[1673745709013,1.17360016,20701.0,20700.0,0.00022408]
[1673745710014,1.16860016,20701.0,20700.0,0.00022408]
[1673745711520,1.15360016,20701.0,20700.0,0.00022408]
[1673745712038,1.29787322,20701.0,20700.0,0.00022408]
[1673745712281,2.85406184,20701.0,20700.0,0.00022408]
[1673745712527,3.50531784,20701.0,20700.0,0.00022408]
[1673745712778,3.50031784,20701.0,20700.0,0.00022408]
[1673745713328,3.31340945,20701.0,20700.0,0.00022408]
[1673745713580,2.19756792,20701.0,20700.0,0.00022408]
[1673745714126,1.90866424,20701.0,20700.0,0.00022408]
[1673745714455,2.05311347,20701.0,20700.0,0.00022408]
[1673745714684,1.90866424,20701.0,20700.0,0.00022408]
[1673745715406,2.0530934,20701.0,20700.0,0.00022408]
[1673745717092,1.70612093,20701.0,20700.0,0.00022408]
[1673745717843,1.73865387,20701.0,20700.0,0.00022408]
[1673745718798,1.59422471,20701.0,20700.0,0.00022408]
[1673745719860,1.73865387,20701.0,20700.0,0.00022408]
[1673745720589,1.59422471,20701.0,20700.0,0.00022408]
[1673745721570,1.32556226,20701.0,20700.0,0.00022408]
[1673745721808,1.54223473,20701.0,20700.0,0.00022408]
[1673745722097,2.05046716,20701.0,20700.0,0.00022408]
[1673745722350,1.39780557,20701.0,20700.0,0.00022408]
[1673745722596,1.98670925,20701.0,20700.0,0.00022408]
[1673745723361,1.90083678,20701.0,20700.0,0.00022408]
[1673745723612,1.96219467,20701.0,20700.0,0.00022408]
[1673745723884,3.28117644,20701.0,20700.0,0.00022408]
[1673745724135,3.88704134,20701.0,20700.0,0.00022408]
[1673745724899,3.84463899,20701.0,20700.0,0.00022408]
[1673745725145,3.84463899,20701.0,20700.0,0.19095003]
[1673745725146,1.96210412,20701.0,20700.0,0.19095003]
[1673745725395,1.47045604,20701.0,20700.0,0.00022408]
[1673745726149,1.68695858,20701.0,20700.0,0.00022408]
[1673745726890,1.98695858,20701.0,20700.0,0.00022408]
[1673745727394,1.47045604,20701.0,20700.0,0.00022408]
[1673745728144,1.46545604,20701.0,20700.0,0.00022408]
[1673745728445,1.31762448,20701.0,20700.0,0.00022408]
[1673745730291,1.32612448,20701.0,20700.0,0.00022408]
[1673745732406,1.00716894,20701.0,20700.0,0.06584408]
[1673745732655,0.1768645,20701.0,20700.0,0.06584408]
[1673745732921,0.03253294,20701.0,20700.0,0.54893508]
[1673745733176,0.03253294,20701.0,20700.0,1.32286685]
[1673745733728,0.03253294,20701.0,20700.0,1.00165485]
[1673745733981,0.03253294,20701.0,20700.0,1.32286685]
[1673745734243,0.03253294,20701.0,20700.0,0.87014708]
[1673745734525,0.03253294,20701.0,20700.0,1.30592703]
[1673745735024,0.03253294,20701.0,20700.0,0.76365608]
[1673745735282,0.03253294,20701.0,20700.0,0.3639571]
[1673745736047,0.52410094,20701.0,20700.0,0.3639571]
[1673745736301,0.52410094,20701.0,20700.0,0.00022408]
[1673745736821,1.3611389,20701.0,20700.0,0.00022408]
[1673745737087,1.00716894,20701.0,20700.0,0.00022408]
[1673745738369,1.49113894,20701.0,20700.0,0.00022408]
[1673745738866,1.1515005,20701.0,20700.0,0.25657003]
[1673745739118,1.1515005,20701.0,20700.0,0.48343941]
[1673745739119,0.03253294,20701.0,20700.0,0.48343941]
[1673745739940,0.03253294,20701.0,20700.0,0.00022408]
[1673745739941,0.10043563,20701.0,20700.0,0.00022408]
[1673745740155,1.34616679,20701.0,20700.0,0.00022408]
[1673745740933,1.35466679,20701.0,20700.0,0.00022408]
[1673745741698,1.49899835,20701.0,20700.0,0.00022408]
[1673745743254,1.1515005,20701.0,20700.0,0.00022408]
[1673745743507,0.52410094,20701.0,20700.0,0.46239985]
[1673745745093,0.52410094,20701.0,20700.0,0.00022408]
[1673745745345,1.35020319,20701.0,20700.0,0.00022408]
[1673745745610,2.06425114,20701.0,20700.0,0.00022408]
[1673745745876,2.39068505,20701.0,20700.0,0.00022408]
[1673745746476,2.07329916,20701.0,20700.0,0.00022408]
[1673745746713,3.48021659,20701.0,20700.0,0.00022408]
[1673745746963,3.15302503,20701.0,20700.0,0.00022408]
[1673745747436,3.45302503,20701.0,20700.0,0.00022408]
[1673745747664,2.97892286,20701.0,20700.0,0.00022408]
[1673745748627,3.41268583,20701.0,20700.0,0.00022408]
[1673745751609,0.1308,20700.0,20694.0,0.48504089]
[1673745751862,0.1308,20700.0,20693.0,0.00836974]
[1673745751863,0.4913081,20697.0,20693.0,0.00836974]
[1673745752117,2.15376193,20696.0,20693.0,0.00836974]
[1673745752336,0.06790269,20695.0,20693.0,0.00836974]
[1673745752630,1.458193,20694.0,20693.0,0.00836974]
[1673745752883,1.458193,20694.0,20692.0,0.42535677]
[1673745753134,1.458193,20694.0,20693.0,0.46165472]
[1673745753394,1.458193,20694.0,20691.0,0.01433426]
[1673745753662,1.458193,20694.0,20692.0,0.4247156]
[1673745756198,1.89966332,20694.0,20691.0,0.40501756]
[1673745756451,1.89966332,20694.0,20692.0,0.45317509]
[1673745760489,1.41643232,20694.0,20692.0,0.45317509]
[1673745760760,0.0085,20694.0,20692.0,0.19072595]
[1673745761011,0.483145,20698.0,20693.0,0.321212]
[1673745761277,1.04863901,20699.0,20694.0,0.50563895]
[1673745761545,1.04863901,20699.0,20695.0,0.51193795]
[1673745761818,1.04863901,20699.0,20696.0,0.19072595]
[1673745761819,0.42090377,20699.0,20696.0,0.19072595]
[1673745762075,0.62771724,20700.0,20696.0,0.19072595]
[1673745762332,1.01635501,20700.0,20696.0,0.19072595]
[1673745763387,0.38796036,20699.0,20694.0,2.03683279]
[1673745763648,0.41242669,20698.0,20694.0,1.55362079]
[1673745763899,0.41242669,20698.0,20695.0,0.39338338]
[1673745764165,0.344524,20698.0,20695.0,0.39338338]
[1673745764416,0.82767,20698.0,20695.0,0.39338338]
[1673745764674,0.42093028,20697.0,20695.0,0.39338338]
[1673745765195,0.90409428,20697.0,20695.0,0.39338338]
[1673745765488,1.38725528,20697.0,20695.0,0.39338338]
[1673745766041,0.966325,20697.0,20695.0,0.39338338]
[1673745766293,0.483146,20698.0,20692.0,0.85781]
[1673745766294,0.483146,20698.0,20694.0,0.0794]
[1673745766558,0.491632,20699.0,20695.0,0.69569251]
[1673745766860,0.491632,20699.0,20696.0,0.214853]
[1673745767104,0.491632,20699.0,20695.0,0.37448051]
[1673745767105,1.2910078,20699.0,20695.0,0.37448051]
[1673745767365,1.35891049,20699.0,20695.0,0.37448051]
[1673745767613,1.50351373,20699.0,20695.0,0.37448051]
[1673745767868,1.35891049,20699.0,20695.0,0.37448051]
[1673745768127,1.50351373,20699.0,20695.0,0.37448051]
[1673745768638,0.32689514,20697.0,20695.0,0.37448051]
[1673745769764,0.0873,20696.0,20691.0,2.83448142]
[1673745770031,0.0873,20696.0,20691.0,0.01433426]
[1673745770032,1.03434269,20695.0,20691.0,0.01433426]
[1673745770291,0.06790269,20694.0,20692.0,0.47366311]
[1673745770552,0.966483,20694.0,20692.0,0.47366311]
[1673745771116,1.045883,20694.0,20692.0,0.47366311]
[1673745772513,1.39848264,20694.0,20692.0,0.47366311]
[1673745775180,1.39829129,20694.0,20692.0,0.47357166]
[1673745775690,1.39829129,20694.0,20692.0,0.66429761]
[1673745775691,0.96629165,20694.0,20692.0,0.66429761]
[1673745775955,0.9240941,20696.0,20691.0,0.09353426]
[1673745775956,1.11097424,20696.0,20691.0,0.09353426]
[1673745776193,0.14460324,20697.0,20693.0,0.0794]
[1673745776475,1.35152885,20698.0,20694.0,0.19866595]
[1673745776476,0.50686875,20698.0,20694.0,0.19866595]
[1673745776706,0.36226551,20698.0,20695.0,0.19072595]
[1673745776952,0.8446301,20699.0,20695.0,0.19072595]
[1673745777229,0.3615081,20699.0,20696.0,0.58559512]
[1673745777454,1.18226829,20700.0,20696.0,0.58559512]
[1673745777697,0.96536343,20700.0,20696.0,0.58559512]
[1673745777958,0.48226643,20700.0,20696.0,0.58559512]
[1673745778703,0.55016912,20700.0,20696.0,0.87804917]
[1673745778925,0.55016912,20700.0,20696.0,0.39486917]
[1673745778926,0.4665635,20699.0,20696.0,0.39486917]
[1673745779179,0.62185307,20698.0,20694.0,0.36047169]
[1673745779422,0.06790269,20697.0,20694.0,0.36047169]
[1673745779921,0.81447057,20697.0,20694.0,0.36047169]
[1673745780156,0.483168,20697.0,20694.0,0.36047169]
[1673745781176,0.966329,20697.0,20694.0,0.55119764]
[1673745781400,0.966329,20697.0,20694.0,0.19072595]
[1673745781690,0.966329,20697.0,20695.0,0.321212]
[1673745781933,0.966329,20697.0,20693.0,0.38203]
[1673745782199,1.03423169,20697.0,20694.0,0.79034354]
[1673745782452,0.966329,20697.0,20695.0,0.214882]
[1673745782696,0.966329,20697.0,20696.0,0.321179]
[1673745782936,0.966329,20697.0,20694.0,0.46913154]
[1673745785269,1.11093224,20697.0,20694.0,0.46913154]
[1673745785988,0.32538225,20696.0,20694.0,0.46913154]
[1673745786221,0.966416,20695.0,20694.0,0.46913154]
[1673745786508,0.966416,20695.0,20693.0,0.35924616]
[1673745787730,1.11101924,20695.0,20693.0,0.35924616]
[1673745787967,0.966416,20695.0,20693.0,0.35924616]
[1673745788973,1.11101924,20695.0,20693.0,0.35924616]
[1673745790921,0.966416,20695.0,20693.0,0.35924616]
[1673745791169,1.17008135,20696.0,20692.0,0.43971967]
[1673745791170,0.483191,20696.0,20692.0,0.43971967]
[1673745791432,1.77762076,20698.0,20693.0,0.46535916]
[1673745791433,1.27150942,20698.0,20693.0,0.46535916]
[1673745791694,0.78835542,20698.0,20694.0,0.40563595]
[1673745791945,0.3909372,20697.0,20694.0,0.19072595]
[1673745792194,0.38838173,20696.0,20692.0,0.82759906]
[1673745792443,0.45628442,20696.0,20692.0,0.82759906]
[1673745792681,0.45628442,20696.0,20693.0,0.79072383]
[1673745792959,0.38838173,20696.0,20693.0,0.46951183]
[1673745793694,0.14460324,20697.0,20693.0,1.43601383]
[1673745793939,0.14460324,20697.0,20693.0,1.77088694]
[1673745794481,1.21056816,20698.0,20693.0,1.98705945]
[1673745794745,0.03253294,20701.0,20697.0,1.02450618]
[1673745794992,0.03253294,20701.0,20699.0,0.64990343]
[1673745795239,0.03253294,20701.0,20700.0,2.62268063]
[1673745795494,0.03253294,20701.0,20700.0,3.26560261]
[1673745795736,0.03253294,20701.0,20700.0,3.07487666]
[1673745795980,0.03253294,20701.0,20700.0,2.070382]
[1673745796223,0.03253294,20701.0,20700.0,2.21478491]
[1673745796480,0.03253294,20701.0,20700.0,2.26110795]
[1673745796724,0.00642775,20702.0,20700.0,4.15141919]
[1673745796725,6.069e-05,20702.0,20700.0,4.15141919]
[1673745796967,6.069e-05,20702.0,20701.0,1.39157018]
[1673745797229,0.00659752,20704.0,20702.0,0.10003751]
[1673745797479,0.00659752,20704.0,20703.0,1.849522]
[1673745798230,0.00659752,20704.0,20703.0,1.75115039]
[1673745800737,0.00659752,20704.0,20703.0,0.66577644]
[1673745800969,0.00704625,20709.0,20703.0,1.93441844]
[1673745801250,0.00704625,20709.0,20708.0,0.0794]
[1673745801529,0.00704625,20709.0,20708.0,0.58631095]
[1673745801762,0.00704625,20709.0,20708.0,0.87849]
[1673745802280,0.00704625,20709.0,20708.0,1.461395]
[1673745802521,0.00736953,20710.0,20708.0,1.840795]
[1673745802770,0.00736953,20710.0,20709.0,0.372719]
[1673745803052,0.07527222,20710.0,20709.0,0.314719]
[1673745803294,0.07527222,20710.0,20708.0,0.35376434]
[1673745803295,0.00736953,20710.0,20708.0,0.35376434]
[1673745804543,0.00736953,20710.0,20709.0,0.5662214]
[1673745804781,0.00736953,20710.0,20709.0,0.479887]
[1673745805279,0.39853068,20714.0,20710.0,0.1]
[1673745805280,0.31429074,20714.0,20710.0,0.1]
[1673745805526,0.00721313,20716.0,20712.0,0.1]
[1673745805783,0.35114566,20715.0,20713.0,0.01]
[1673745806070,0.35776988,20714.0,20712.0,0.4212043]
[1673745807317,0.8312464,20716.0,20712.0,0.4212043]
[1673745807542,0.8312464,20716.0,20712.0,0.61193025]
[1673745807543,0.8312604,20716.0,20712.0,0.61193025]
[1673745807792,0.8312604,20716.0,20713.0,0.4559451]
[1673745808041,1.3139974,20716.0,20713.0,0.64667105]
[1673745808290,0.8312614,20716.0,20713.0,0.4559451]
[1673745808529,0.8312614,20716.0,20713.0,0.64667105]
[1673745808775,0.48995013,20716.0,20713.0,0.64667105]
[1673745809273,0.00721313,20716.0,20713.0,0.4559451]
[1673745809519,0.00721313,20716.0,20713.0,1.144354]
[1673745810008,0.00721313,20716.0,20713.0,1.33507995]
[1673745810253,0.00721313,20716.0,20715.0,0.0794]
[1673745810502,0.00721313,20716.0,20715.0,1.254528]
[1673745814233,0.07511582,20716.0,20715.0,0.289046]
[1673745814488,0.07511582,20716.0,20713.0,0.46718332]
[1673745814489,0.37315712,20716.0,20713.0,0.46718332]
[1673745814748,0.85587612,20716.0,20713.0,0.46718332]
[1673745815259,0.85587612,20716.0,20708.0,1.2836]
[1673745815260,0.06790269,20715.0,20708.0,1.2836]
[1673745815557,0.06790269,20715.0,20709.0,0.35636743]
[1673745815558,0.0788,20711.0,20709.0,0.35636743]